fUST/lending_fUST_20250502
["ID","MTS","AMOUNT","RATE_DAILY","PERIOD"]
[359602718,1746178242833,-400.0,0.00019178,2]
[359602720,1746178242843,-400.0,0.00019178,2]
[359602722,1746178242852,-400.0,0.00019178,2]
[359602724,1746178242862,-400.0,0.00019178,2]
[359602726,1746178242872,-400.0,0.00019178,2]
[359602728,1746178242882,-400.0,0.00019178,2]
[359602730,1746178242892,-400.0,0.00019178,2]
[359602732,1746178242902,-451.51,0.00019178,2]
[359602734,1746178242912,-400.0,0.00019178,2]
[359602736,1746178242922,-400.0,0.00019178,2]
[359602738,1746178242932,-400.0,0.00019178,2]
[359602740,1746178242942,-204.31939851,0.00019178,2]
[359602742,1746178242952,-5094.72,0.00019178,2]
[359602744,1746178242961,-382.45809604,0.00019178,2]
[359602746,1746178242970,-400.0,0.00019178,2]
[359602748,1746178242980,-400.0,0.00019178,2]
[359602750,1746178242990,-400.0,0.00019178,2]
[359602752,1746178243000,-400.0,0.00019178,2]
[359602754,1746178243013,-400.0,0.00019178,2]
[359602756,1746178243023,-400.0,0.00019178,2]
[359602758,1746178243032,-400.0,0.00019178,2]
[359602760,1746178243042,-402.19483755,0.00019178,2]
[359602763,1746178243053,-504.51033215,0.00019178,2]
[359602765,1746178243063,-400.0,0.00019178,2]
[359602767,1746178243072,-400.0,0.00019178,2]
[359602769,1746178243082,-400.0,0.00019178,2]
[359602771,1746178243092,-401.60969043,0.00019178,2]
[359602773,1746178243101,-2035.39,0.00019178,2]
[359602775,1746178243112,-400.0,0.00019178,2]
[359602777,1746178243121,-400.0,0.00019178,2]
[359602779,1746178243132,-780.01,0.00019178,2]
[359602781,1746178243141,-400.0,0.00019178,2]
[359602783,1746178243152,-1186.09,0.00019178,2]
[359602785,1746178243162,-400.0,0.00019178,2]
[359602787,1746178243172,-400.0,0.00019178,2]
[359602789,1746178243182,-1494.08,0.00019178,2]
[359602791,1746178243192,-7882.8,0.00019178,2]
[359602793,1746178243201,-400.0,0.00019178,2]
[359602795,1746178243211,-400.0,0.00019178,2]
[359602797,1746178243220,-400.0,0.00019178,2]
[359602799,1746178243230,-205.94821086,0.00019178,2]
[359602801,1746178243240,-400.0,0.00019178,2]
[359602803,1746178243249,-526.39,0.00019178,2]
[359602805,1746178243259,-400.0,0.00019178,2]
[359602807,1746178243268,-400.0,0.00019178,2]
[359602809,1746178243277,-1490.66,0.00019178,2]
[359602811,1746178243287,-400.0,0.00019178,2]
[359602813,1746178243296,-302.44802137,0.00019178,2]
[359602815,1746178243306,-1951.69,0.00019178,2]
[359602817,1746178243316,-400.0,0.00019178,2]
[359602819,1746178243326,-2117.96,0.00019178,2]
[359602821,1746178243335,-400.0,0.00019178,2]
[359602823,1746178243345,-400.0,0.00019178,2]
[359602825,1746178243356,-400.0,0.00019178,2]
[359602827,1746178243366,-400.0,0.00019178,2]
[359602829,1746178243376,-943.89,0.00019178,2]
[359602831,1746178243385,-6271.66,0.00019178,2]
[359602833,1746178243395,-310.26623429,0.00019178,2]
[359602835,1746178243404,-400.0,0.00019178,2]
[359602837,1746178243414,-7468.28,0.00019178,2]
[359602839,1746178243424,-400.0,0.00019178,2]
[359602841,1746178243433,-400.0,0.00019178,2]
[359602843,1746178243443,-478.07,0.00019178,2]
[359602845,1746178243452,-473.71,0.00019178,2]
[359602847,1746178243462,-400.0,0.00019178,2]
[359602849,1746178243471,-2557.88,0.00019178,2]
[359602851,1746178243480,-892.66,0.00019178,2]
[359602853,1746178243489,-907.96,0.00019178,2]
[359602855,1746178243498,-400.0,0.00019178,2]
[359602857,1746178243508,-834.47,0.00019178,2]
[359602859,1746178243518,-404.73388617,0.00019178,2]
[359602861,1746178243527,-400.0,0.00019178,2]
[359602863,1746178243536,-898.87,0.00019178,2]
[359602866,1746178243546,-400.0,0.00019178,2]
[359602868,1746178243556,-400.0,0.00019178,2]
[359602869,1746178243566,-400.0,0.00019178,2]
[359602872,1746178243575,-818.49,0.00019178,2]
[359602873,1746178243585,-400.0,0.00019178,2]
[359602875,1746178243594,-2193.85,0.00019178,2]
[359602878,1746178243604,-657.45,0.00019178,2]
[359602879,1746178243613,-400.0,0.00019178,2]
[359602881,1746178243622,-400.0,0.00019178,2]
[359602883,1746178243632,-1969.43,0.00019178,2]
[359602885,1746178243641,-400.0,0.00019178,2]
[359602887,1746178243650,-211.91836143,0.00019178,2]
[359602889,1746178243660,-451.15,0.00019178,2]
[359602891,1746178243669,-400.0,0.00019178,2]
[359602893,1746178243679,-400.0,0.00019178,2]
[359602895,1746178243688,-413.88,0.00019178,2]
[359602897,1746178243697,-969.53,0.00019178,2]
[359602899,1746178243707,-400.0,0.00019178,2]
[359602901,1746178243717,-501.55560415,0.00019178,2]
[359602903,1746178243726,-400.0,0.00019178,2]
[359602905,1746178243735,-400.0,0.00019178,2]
[359602907,1746178243745,-400.0,0.00019178,2]
[359602909,1746178243754,-400.0,0.00019178,2]
[359602911,1746178243764,-758.16,0.00019178,2]
[359602913,1746178243773,-400.0,0.00019178,2]
[359602915,1746178243783,-466.37,0.00019178,2]
[359602917,1746178243792,-2012.47,0.00019178,2]
[359602919,1746178243802,-402.01261935,0.00019178,2]
[359602921,1746178243812,-6637.31,0.00019178,2]
[359602923,1746178243822,-170.75194939,0.00019178,2]
[359602925,1746178243832,-410.74880879,0.00019178,2]
[359602927,1746178243841,-404.40029505,0.00019178,2]
[359602929,1746178243851,-449.27,0.00019178,2]
[359602931,1746178243861,-403.4259321,0.00019178,2]
[359602933,1746178243870,-400.0,0.00019178,2]
[359602935,1746178243879,-400.0,0.00019178,2]
[359602937,1746178243890,-400.0,0.00019178,2]
[359602939,1746178243899,-400.0,0.00019178,2]
[359602941,1746178243910,-400.0,0.00019178,2]
[359602943,1746178243919,-400.0,0.00019178,2]
[359602945,1746178243929,-400.0,0.00019178,2]
[359602947,1746178243940,-400.0,0.00019178,2]
[359602950,1746178243949,-208.46843917,0.00019178,2]
[359602952,1746178243959,-402.66,0.00019178,2]
[359602954,1746178243969,-3399.42,0.00019178,2]
[359602956,1746178243978,-842.68,0.00019178,2]
[359602958,1746178243988,-400.0,0.00019178,2]
[359602960,1746178243997,-400.0,0.00019178,2]
[359602962,1746178244011,-1601.55,0.00019178,2]
[359602964,1746178244021,-2840.05,0.00019178,2]
[359602966,1746178244030,-234.5457669,0.00019178,2]
[359602968,1746178244040,-356.13656609,0.00019178,2]
[359602970,1746178244050,-400.0,0.00019178,2]
[359602972,1746178244060,-400.0,0.00019178,2]
[359602974,1746178244070,-400.0,0.00019178,2]
[359602976,1746178244080,-982.19,0.00019178,2]
[359602978,1746178244090,-400.0,0.00019178,2]
[359602980,1746178244100,-400.0,0.00019178,2]
[359602982,1746178244110,-2357.94,0.00019178,2]
[359602984,1746178244120,-515.0,0.00019178,2]
[359602986,1746178244130,-3698.48,0.00019178,2]
[359602988,1746178244139,-400.0,0.00019178,2]
[359602990,1746178244149,-400.0,0.00019178,2]
[359602992,1746178244160,-400.0,0.00019178,2]
[359602994,1746178244169,-400.0,0.00019178,2]
[359602996,1746178244179,-717.45,0.00019178,2]
[359602998,1746178244189,-1170.96,0.00019178,2]
[359603000,1746178244199,-400.0,0.00019178,2]
[359603002,1746178244208,-424.86,0.00019178,2]
[359603004,1746178244218,-400.0,0.00019178,2]
[359603006,1746178244228,-400.0,0.00019178,2]
[359603008,1746178244237,-400.0,0.00019178,2]
[359603010,1746178244247,-400.0,0.00019178,2]
[359603012,1746178244256,-400.0,0.00019178,2]
[359603014,1746178244266,-400.0,0.00019178,2]
[359603016,1746178244276,-403.22447969,0.00019178,2]
[359603018,1746178244286,-400.0,0.00019178,2]
[359603020,1746178244296,-3165.91,0.00019178,2]
[359603022,1746178244305,-400.0,0.00019178,2]
[359603024,1746178244315,-400.0,0.00019178,2]
[359603026,1746178244324,-400.0,0.00019178,2]
[359603028,1746178244333,-258.04448889,0.00019178,2]
[359603030,1746178244342,-400.0,0.00019178,2]
[359603032,1746178244352,-2744.59,0.00019178,2]
[359603034,1746178244362,-400.0,0.00019178,2]
[359603036,1746178244371,-419.98,0.00019178,2]
[359603038,1746178244382,-1555.29,0.00019178,2]
[359603040,1746178244392,-402.77394375,0.00019178,2]
[359603042,1746178244401,-773.06,0.00019178,2]
[359603044,1746178244411,-902.88,0.00019178,2]
[359603046,1746178244421,-400.0,0.00019178,2]
[359603047,1746178244431,-400.0,0.00019178,2]
[359603048,1746178244441,-1386.65,0.00019178,2]
[359603049,1746178244450,-633.45,0.00019178,2]
[359603050,1746178244460,-400.0,0.00019178,2]
[359603051,1746178244470,-208.41418251,0.00019178,2]
[359603052,1746178244480,-596.13,0.00019178,2]
[359603053,1746178244489,-400.0,0.00019178,2]
[359603054,1746178244498,-821.37,0.00019178,2]
[359603055,1746178244507,-400.0,0.00019178,2]
[359603056,1746178244516,-400.0,0.00019178,2]
[359603057,1746178244526,-494.87,0.00019178,2]
[359603058,1746178244535,-400.0,0.00019178,2]
[359603059,1746178244544,-400.0,0.00019178,2]
[359603060,1746178244554,-677.29,0.00019178,2]
[359603061,1746178244563,-2995.31,0.00019178,2]
[359603062,1746178244573,-400.0,0.00019178,2]
[359603063,1746178244582,-1006.45,0.00019178,2]
[359603064,1746178244591,-400.0,0.00019178,2]
[359603065,1746178244601,-400.0,0.00019178,2]
[359603066,1746178244610,-206.67162989,0.00019178,2]
[359603067,1746178244619,-834.7,0.00019178,2]
[359603068,1746178244629,-952.04,0.00019178,2]
[359603070,1746178244638,-1319.86,0.00019178,2]
[359603072,1746178244648,-2813.46,0.00019178,2]
[359603074,1746178244657,-400.0,0.00019178,2]
[359603076,1746178244667,-669.36,0.00019178,2]
[359603078,1746178244676,-842.17,0.00019178,2]
[359603080,1746178244685,-400.0,0.00019178,2]
[359603082,1746178244695,-400.0,0.00019178,2]
[359603084,1746178244704,-400.0,0.00019178,2]
[359603086,1746178244716,-208.26762166,0.00019178,2]
[359603119,1746178245019,-191.73237834,0.00019178,2]
[359603121,1746178245028,-400.0,0.00019178,2]
[359603123,1746178245038,-400.0,0.00019178,2]
[359603125,1746178245048,-423.4533478,0.00019178,2]
[359603127,1746178245058,-272.12679179,0.00019178,2]
[359603129,1746178245070,-127.87320821,0.00019178,2]
[359603131,1746178245080,-419.53,0.00019178,2]
[359603133,1746178245091,-400.0,0.00019178,2]
[359603135,1746178245101,-400.0,0.00019178,2]
[359603137,1746178245110,-912.61,0.00019178,2]
[359603139,1746178245119,-400.0,0.00019178,2]
[359603141,1746178245129,-400.0,0.00019178,2]
[359603143,1746178245138,-400.0,0.00019178,2]
[359603145,1746178245147,-976.70464441,0.00019178,2]
[359603147,1746178245159,-2263.86535559,0.00019178,2]
[359603149,1746178245169,-400.0,0.00019178,2]
[359603151,1746178245180,-400.0,0.00019178,2]
[359603153,1746178245190,-400.0,0.00019178,2]
[359603155,1746178245200,-400.0,0.00019178,2]
[359603157,1746178245210,-1127.0,0.00019178,2]
[359603159,1746178245220,-202.85576211,0.00019178,2]
[359603161,1746178245230,-400.0,0.00019178,2]
[359603163,1746178245240,-1275.97,0.00019178,2]
[359603165,1746178245250,-400.0,0.00019178,2]
[359603167,1746178245260,-400.0,0.00019178,2]
[359603169,1746178245269,-1970.84,0.00019178,2]
[359603171,1746178245279,-400.0,0.00019178,2]
[359603173,1746178245289,-416.1,0.00019178,2]
[359603175,1746178245298,-583.7,0.00019178,2]
[359603177,1746178245308,-400.0,0.00019178,2]
[359603179,1746178245318,-400.0,0.00019178,2]
[359603181,1746178245327,-400.0,0.00019178,2]
[359603183,1746178245337,-400.0,0.00019178,2]
[359603185,1746178245346,-400.0,0.00019178,2]
[359603187,1746178245356,-400.0,0.00019178,2]
[359603189,1746178245366,-1218.78,0.00019178,2]
[359603191,1746178245375,-400.0,0.00019178,2]
[359603193,1746178245384,-400.0,0.00019178,2]
[359603195,1746178245393,-2346.44,0.00019178,2]
[359603197,1746178245403,-400.0,0.00019178,2]
[359603199,1746178245411,-400.0,0.00019178,2]
[359603201,1746178245421,-400.0,0.00019178,2]
[359603203,1746178245430,-400.0,0.00019178,2]
[359603205,1746178245439,-2151.99,0.00019178,2]
[359603207,1746178245449,-400.0,0.00019178,2]
[359603209,1746178245458,-401.65056157,0.00019178,2]
[359603211,1746178245468,-411.17182335,0.00019178,2]
[359603213,1746178245477,-400.0,0.00019178,2]
[359603215,1746178245486,-400.0,0.00019178,2]
[359603217,1746178245496,-666.59,0.00019178,2]
[359603219,1746178245506,-400.0,0.00019178,2]
[359603221,1746178245516,-515.63254853,0.00019178,2]
[359603223,1746178245525,-400.0,0.00019178,2]
[359603225,1746178245535,-400.0,0.00019178,2]
[359603227,1746178245545,-400.54,0.00019178,2]
[359603229,1746178245554,-639.91,0.00019178,2]
[359603231,1746178245564,-400.0,0.00019178,2]
[359603233,1746178245573,-417.04769636,0.00019178,2]
[359603235,1746178245582,-400.0,0.00019178,2]
[359603237,1746178245592,-455.92,0.00019178,2]
[359603239,1746178245602,-400.0,0.00019178,2]
[359603241,1746178245614,-400.0,0.00019178,2]
[359603243,1746178245627,-400.0,0.00019178,2]
[359603245,1746178245636,-1171.48,0.00019178,2]
[359603247,1746178245645,-1616.94037207,0.00019178,2]
[359603249,1746178245658,-249.993024,0.00019178,2]
[359603257,1746178246107,-543.30660393,0.00019178,2]
[359603258,1746178246117,-400.0,0.00019178,2]
[359603259,1746178246126,-1903.2,0.00019178,2]
[359603260,1746178246135,-400.0,0.00019178,2]
[359603261,1746178246144,-400.0,0.00019178,2]
[359603262,1746178246154,-500.0,0.00019178,2]
[359603263,1746178246163,-533.17101328,0.00019178,2]
[359603264,1746178246172,-400.0,0.00019178,2]
[359603265,1746178246181,-12197.11107296,0.00019178,2]
[359603269,1746178246288,-1885.09195737,0.00019178,2]
[359603271,1746178246614,-7283.11696967,0.00019178,2]
[359603272,1746178246624,-700.0994041,0.00019178,2]
[359603273,1746178246643,-1539.7905959,0.00019178,2]
[359603274,1746178246652,-400.0,0.00019178,2]
[359603275,1746178246662,-400.0,0.00019178,2]
[359603276,1746178246671,-450.25100278,0.00019178,2]
[359603277,1746178246681,-400.0,0.00019178,2]
[359603278,1746178246691,-1259.75948459,0.00019178,2]
[359603279,1746178246702,-851.15761222,0.00019178,2]
[359603280,1746178246713,-2616.83290319,0.00019178,2]
[359603281,1746178246722,-511.19,0.00019178,2]
[359603282,1746178246732,-400.0,0.00019178,2]
[359603283,1746178246742,-400.0,0.00019178,2]
[359603284,1746178246751,-400.0,0.00019178,2]
[359603285,1746178246761,-400.0,0.00019178,2]
[359603286,1746178246770,-400.0,0.00019178,2]
[359603287,1746178246780,-400.0,0.00019178,2]
[359603288,1746178246790,-337.66754326,0.00019178,2]
[359603289,1746178246799,-400.0,0.00019178,2]
[359603290,1746178246808,-400.0,0.00019178,2]
[359603291,1746178246818,-400.0,0.00019178,2]
[359603292,1746178246827,-400.0,0.00019178,2]
[359603293,1746178246836,-503.2096595,0.00019178,2]
[359603294,1746178246845,-400.0,0.00019178,2]
[359603295,1746178246854,-446.01,0.00019178,2]
[359603296,1746178246863,-212.94230891,0.00019178,2]
[359603297,1746178246872,-227.219836,0.00019178,2]
[359603298,1746178246881,-148.76136766,0.0001918,2]
[359604586,1746179063171,262.567208,0.00017958,2]
[359604626,1746179202130,24900.0,0.00017949,2]
[359604627,1746179273071,3334.1165821,0.00017822,2]
[359604630,1746179316081,27341.1296507,0.00023,120]
[359604632,1746179397392,159.99999904,0.00025,30]
[359604699,1746179432308,-377.1888724,0.00018123,2]
[359604701,1746179432318,-1604.922431,0.00018259,2]
[359604703,1746179432327,-377.1888724,0.00018605,2]
[359604705,1746179432336,-250.0,0.00018776,2]
[359604707,1746179432345,-1000.0,0.00018776,2]
[359604709,1746179432354,-1200.0,0.00018872,2]
[359604712,1746179432363,-300.0,0.00018872,2]
[359604713,1746179432375,-300.0,0.00018873,2]
[359604714,1746179432385,-36275.57866837,0.00018873,2]
[359604716,1746179432395,-500.0,0.00018874,2]
[359604717,1746179432404,-558.1147565,0.00018874,2]
[359604718,1746179432413,-207.1975833,0.00018874,2]
[359604719,1746179432425,-282.29527294,0.00018874,2]
[359604720,1746179432435,-500.0,0.00018874,2]
[359604721,1746179432444,-500.0,0.00018874,2]
[359604722,1746179432454,-500.0,0.00018874,2]
[359604723,1746179432463,-500.0,0.00018874,2]
[359604731,1746179432678,-500.0,0.00018874,2]
[359604734,1746179432690,-500.0,0.00018874,2]
[359604736,1746179432700,-500.0,0.00018874,2]
[359604738,1746179432709,-500.0,0.00018874,2]
[359604740,1746179432718,-500.0,0.00018874,2]
[359604742,1746179432728,-500.0,0.00018874,2]
[359604744,1746179432737,-500.0,0.00018874,2]
[359604746,1746179432747,-500.0,0.00018874,2]
[359604748,1746179432757,-592.93735196,0.00018874,2]
[359604750,1746179432767,-500.0,0.00018874,2]
[359604752,1746179432776,-500.0,0.00018874,2]
[359604754,1746179432786,-500.0,0.00018874,2]
[359604756,1746179432795,-500.0,0.00018874,2]
[359604758,1746179432805,-500.0,0.00018874,2]
[359604760,1746179432814,-500.0,0.00018874,2]
[359604762,1746179432823,-500.0,0.00018874,2]
[359604764,1746179432832,-500.0,0.00018874,2]
[359604766,1746179432842,-500.0,0.00018874,2]
[359604768,1746179432852,-509.53130928,0.00018874,2]
[359604770,1746179432861,-377.1888724,0.00018875,2]
[359604772,1746179432870,-545.0,0.00018876,2]
[359604774,1746179432879,-403.0,0.00018876,2]
[359604776,1746179432888,-2244.0,0.00018876,2]
[359604778,1746179432898,-707.0,0.00018876,2]
[359604780,1746179432907,-150.252,0.00018876,2]
[359604782,1746179432916,-377.1888726,0.00018939,2]
[359604784,1746179432926,-200.0,0.0001895,2]
[359604786,1746179432936,-1700.0,0.00018972,2]
[359604788,1746179432946,-2307.2482973,0.00018988,2]
[359604790,1746179432956,-154.97048864,0.00019068,2]
[359604792,1746179432966,-152.0,0.00019156,2]
[359604794,1746179432974,-35798.02066062,0.00019157,2]
[359604796,1746179432984,-853.95,0.00019168,3]
[359604798,1746179432993,-426.97,0.00019168,3]
[359604800,1746179433003,-213.49,0.00019168,3]
[359604802,1746179433012,-640.49,0.00019168,3]
[359604804,1746179433021,-500.0,0.00019173,2]
[359604806,1746179433030,-500.0,0.00019173,2]
[359604808,1746179433040,-500.0,0.00019173,2]
[359604810,1746179433049,-500.0,0.00019173,2]
[359604812,1746179433059,-510.56645775,0.00019173,2]
[359604814,1746179433068,-500.0,0.00019173,2]
[359604816,1746179433077,-500.0,0.00019173,2]
[359604818,1746179433087,-181.22309401,0.00019173,2]
[359604820,1746179433096,-500.0,0.00019173,2]
[359604822,1746179433105,-500.0,0.00019173,2]
[359604824,1746179433115,-501.22934475,0.00019173,2]
[359604826,1746179433124,-500.0,0.00019173,2]
[359604828,1746179433133,-422.10997939,0.00019173,2]
[359604830,1746179433142,-500.0,0.00019173,2]
[359604832,1746179433153,-500.0,0.00019173,2]
[359604834,1746179433162,-400.0,0.00019178,2]
[359604836,1746179433171,-302.73462613,0.00019178,2]
[359604838,1746179433181,-400.0,0.00019178,2]
[359604840,1746179433191,-400.0,0.00019178,2]
[359604842,1746179433200,-400.0,0.00019178,2]
[359604844,1746179433210,-400.0,0.00019178,2]
[359604846,1746179433219,-160.32674195,0.00019178,2]
[359604848,1746179433228,-400.0,0.00019178,2]
[359604850,1746179433237,-400.0,0.00019178,2]
[359604852,1746179433247,-204.54589491,0.00019178,2]
[359604854,1746179433256,-400.41965924,0.00019178,2]
[359604856,1746179433265,-417.98942443,0.00019178,2]
[359604858,1746179433274,-400.0,0.00019178,2]
[359604860,1746179433284,-400.0,0.00019178,2]
[359604862,1746179433293,-400.0,0.00019178,2]
[359604864,1746179433302,-508.43,0.00019178,2]
[359604866,1746179433311,-400.0,0.00019178,2]
[359604868,1746179433321,-205.21317442,0.00019178,2]
[359604870,1746179433331,-932.35,0.00019178,2]
[359604872,1746179433341,-216.53484722,0.00019178,2]
[359604874,1746179433350,-400.0,0.00019178,2]
[359604876,1746179433360,-710.87,0.00019178,2]
[359604878,1746179433369,-400.0,0.00019178,2]
[359604880,1746179433379,-400.0,0.00019178,2]
[359604882,1746179433388,-400.0,0.00019178,2]
[359604884,1746179433398,-400.0,0.00019178,2]
[359604886,1746179433407,-400.0,0.00019178,2]
[359604888,1746179433417,-543.7538992,0.00019178,2]
[359604890,1746179433427,-400.0,0.00019178,2]
[359604892,1746179433437,-400.0,0.00019178,2]
[359604894,1746179433447,-776.47,0.00019178,2]
[359604896,1746179433457,-400.0,0.00019178,2]
[359604898,1746179433467,-400.0,0.00019178,2]
[359604900,1746179433477,-797.62,0.00019178,2]
[359604903,1746179433487,-400.0,0.00019178,2]
[359604905,1746179433497,-400.0,0.00019178,2]
[359604907,1746179433507,-400.0,0.00019178,2]
[359604909,1746179433516,-400.0,0.00019178,2]
[359604911,1746179433526,-400.0,0.00019178,2]
[359604913,1746179433536,-400.0,0.00019178,2]
[359604915,1746179433546,-400.0,0.00019178,2]
[359604917,1746179433556,-400.0,0.00019178,2]
[359604919,1746179433565,-400.00000001,0.00019178,2]
[359604921,1746179433575,-400.0,0.00019178,2]
[359604923,1746179433585,-400.0,0.00019178,2]
[359604925,1746179433594,-400.0,0.00019178,2]
[359604927,1746179433604,-400.0,0.00019178,2]
[359604929,1746179433613,-693.24,0.00019178,2]
[359604931,1746179433622,-207.64154827,0.00019178,2]
[359604933,1746179433632,-311.90390446,0.00019178,2]
[359604935,1746179433641,-230.61111892,0.00019178,2]
[359604937,1746179433650,-528.28990535,0.00019178,2]
[359604939,1746179433660,-400.0,0.00019178,2]
[359604941,1746179433669,-400.0,0.00019178,2]
[359604943,1746179433681,-400.0,0.00019178,2]
[359604945,1746179433692,-400.0,0.00019178,2]
[359604947,1746179433702,-400.0,0.00019178,2]
[359604949,1746179433711,-400.0,0.00019178,2]
[359604951,1746179433720,-400.0,0.00019178,2]
[359604953,1746179433730,-400.0,0.00019178,2]
[359604955,1746179433739,-400.0,0.00019178,2]
[359604957,1746179433749,-400.0,0.00019178,2]
[359604959,1746179433759,-400.0,0.00019178,2]
[359604961,1746179433768,-304.99197472,0.00019178,2]
[359604963,1746179433778,-400.0,0.00019178,2]
[359604965,1746179433787,-442.70747204,0.00019178,2]
[359604967,1746179433796,-491.21,0.00019178,2]
[359604969,1746179433806,-400.0,0.00019178,2]
[359604971,1746179433815,-218.82940397,0.00019178,2]
[359604973,1746179433824,-400.0,0.00019178,2]
[359604975,1746179433834,-400.0,0.00019178,2]
[359604977,1746179433843,-201.84120554,0.00019178,2]
[359604979,1746179433853,-400.0,0.00019178,2]
[359604981,1746179433863,-400.0,0.00019178,2]
[359604983,1746179433872,-400.0,0.00019178,2]
[359604985,1746179433882,-448.76,0.00019178,2]
[359604987,1746179433891,-211.24572936,0.00019178,2]
[359604989,1746179433900,-265.39291692,0.00019178,2]
[359604991,1746179433909,-400.0,0.00019178,2]
[359604993,1746179433919,-400.0,0.00019178,2]
[359604995,1746179433928,-400.0,0.00019178,2]
[359604997,1746179433937,-203.54424751,0.00019178,2]
[359604999,1746179433947,-400.0,0.00019178,2]
[359605001,1746179433956,-400.0,0.00019178,2]
[359605003,1746179433965,-400.0,0.00019178,2]
[359605005,1746179433975,-400.0,0.00019178,2]
[359605007,1746179433984,-400.0,0.00019178,2]
[359605009,1746179433994,-318.28866978,0.00019178,2]
[359605011,1746179434004,-402.71264313,0.00019178,2]
[359605013,1746179434013,-589.01,0.00019178,2]
[359605015,1746179434022,-400.0,0.00019178,2]
[359605017,1746179434032,-400.0,0.00019178,2]
[359605019,1746179434042,-400.0,0.00019178,2]
[359605021,1746179434052,-400.0,0.00019178,2]
[359605023,1746179434061,-400.0,0.00019178,2]
[359605025,1746179434071,-400.0,0.00019178,2]
[359605027,1746179434081,-400.0,0.00019178,2]
[359605029,1746179434090,-964.51,0.00019178,2]
[359605031,1746179434100,-400.0,0.00019178,2]
[359605033,1746179434110,-400.0,0.00019178,2]
[359605035,1746179434120,-400.0,0.00019178,2]
[359605037,1746179434130,-400.0,0.00019178,2]
[359605039,1746179434139,-400.0,0.00019178,2]
[359605041,1746179434149,-400.0,0.00019178,2]
[359605043,1746179434158,-400.0,0.00019178,2]
[359605045,1746179434169,-400.0,0.00019178,2]
[359605047,1746179434179,-400.0,0.00019178,2]
[359605049,1746179434189,-400.0,0.00019178,2]
[359605051,1746179434199,-400.0,0.00019178,2]
[359605053,1746179434208,-400.0,0.00019178,2]
[359605056,1746179434218,-206.21072931,0.00019178,2]
[359605058,1746179434228,-208.25947076,0.00019178,2]
[359605060,1746179434237,-400.0,0.00019178,2]
[359605062,1746179434246,-400.0,0.00019178,2]
[359605064,1746179434256,-400.0,0.00019178,2]
[359605066,1746179434265,-400.0,0.00019178,2]
[359605068,1746179434275,-400.0,0.00019178,2]
[359605070,1746179434286,-400.0,0.00019178,2]
[359605072,1746179434295,-400.0,0.00019178,2]
[359605074,1746179434305,-400.0,0.00019178,2]
[359605076,1746179434314,-400.0,0.00019178,2]
[359605078,1746179434324,-400.0,0.00019178,2]
[359605080,1746179434334,-400.0,0.00019178,2]
[359605082,1746179434344,-400.0,0.00019178,2]
[359605084,1746179434354,-400.0,0.00019178,2]
[359605086,1746179434363,-400.0,0.00019178,2]
[359605088,1746179434374,-722.96,0.00019178,2]
[359605090,1746179434385,-400.0,0.00019178,2]